Cogmind - Beta 16 @@@ ROGUE MODE // 2025.12.18 @ 04:09:11 Player: War__Prophet Result: Destroyed by G-47 Trooper with Particle Gun Performance ------------- Evolutions (2) 1000 Regions Visited (3) 600 Robots Destroyed (17) 85 Value Destroyed (427) 427 Prototype IDs (1) 20 Alien Tech Used (0) 0 Bonus (0) 0 TOTAL SCORE: 2132 Bonus ------- None Cogmind --------- Core Integrity 0/550 Matter 225/300 Energy 104/290 System Corruption 0% Temperature Cool (31) Movement Rolling (100) Location -8/Materials Parts ------- > --- POWER (1) -------- Improved Deuterium Engine > --- PROPULSION (6) --- Armored Huge Wheel Armored Huge Wheel Armored Huge Wheel > --- UTILITY (2) ------ (None) > --- WEAPON (2) ------- Mini Assault Cannon Mini Assault Cannon > --- INVENTORY (5) ---- Ion Engine Thermal Generator Heat Sink Small Storage Unit High-capacity Storage Unit Peak State ------------ > --- POWER ------------ Improved Deuterium Engine > --- PROPULSION ------- Armored Huge Wheel Armored Huge Wheel Armored Huge Wheel > --- UTILITY ---------- (None) > --- WEAPON ----------- Mini Assault Cannon Mini Assault Cannon > --- INVENTORY -------- Ion Engine Thermal Generator Heat Sink Small Storage Unit High-capacity Storage Unit [Rating: 38] Favorites ----------- Power Ion Engine Engine Ion Engine Power Core Nuclear Core Propulsion Compact Wheel Wheel Compact Wheel Flight Unit Flight Unit Utility High-capacity Storage Unit Device Improved Heat Sink Storage High-capacity Storage Unit Protection Heavy Armor Plating Weapon Assault Rifle Energy Gun Small Laser Ballistic Gun Assault Rifle Ballistic Cannon Mini Assault Cannon Launcher Mini Grenade Launcher Build | -11 -10 -9 -8 ------- Run | Yrd Mat Mat Mat Slots Evolved 4 | . . 2 2 Power . | . . . . Propulsion 4 | . . 2 2 Utility . | . . . . Weapon . | . . . . Parts Attached 25 | 6 6 4 9 Power 4 | 1 1 . 2 Engine 3 | 1 1 . 1 Core 1 | . . . 1 Reactor . | . . . . Propulsion 9 | 2 2 2 3 Treads . | . . . . Leg . | . . . . Wheel 5 | 2 . . 3 Hover . | . . . . Flight 4 | . 2 2 . Utility 6 | 1 2 1 2 Device 2 | . . 1 1 Storage 3 | 1 2 . . Processor . | . . . . Hackware . | . . . . Protection 1 | . . . 1 Artifact . | . . . . Weapon 6 | 2 1 1 2 Energy Gun 1 | . 1 . . Energy Cannon . | . . . . Ballistic Gun 2 | 2 . . . Ballistic Cannon 2 | . . . 2 Launcher 1 | . . 1 . Special Weapon . | . . . . Impact Weapon . | . . . . Slashing Weapon . | . . . . Piercing Weapon . | . . . . Special Melee Weapon . | . . . . Unidentified Prototypes 1 | . . . 1 Parts Lost 12 | . 4 2 6 Power 1 | . . 1 . Propulsion 6 | . 2 1 3 Utility 1 | . . . 1 Weapon 4 | . 2 . 2 Highest Loss Streak 6 | . 3 2 6 To Critical Strikes . | . . . . Average Backups 4 | . 4 4 5 Power . | . 1 1 1 Propulsion 1 | . 2 . . Utility 2 | . 1 3 4 Weapon . | . . . . Tool/Special . | . . . . Unused Backups 3 | . . . 3 Power 1 | . . . 1 Propulsion . | . . . . Utility 2 | . . . 2 Weapon . | . . . . Tool/Special . | . . . . Average Slot Usage (%) 65 | . 84 54 36 Engine 9 | . 14 7 . Wheel 11 | . 19 . 4 Flight 12 | . 1 32 14 Storage 11 | . 22 . . Energy Gun 4 | . 1 11 3 Ballistic Gun 12 | . 24 . . Launcher 2 | . . 3 6 Peak Build Rating 38 | 6 7 9 38 Average Rating 6 | 5 5 5 9 On Entrance 4 | . 6 4 7 Avg Prop Armor Cover (%) . | . . . . Naked Turns 5 | . . . 5 Heaviest Build 59 | 14 59 13 14 Greatest Support 84 | 32 32 16 84 Greatest Overweight (x) 3 | . 3 1 2 Average Overweight (x) . | . 1 . . Largest Inventory Capacity 20 | 8 20 5 8 Average Capacity 11 | 7 18 5 5 Most Carried 6 | 1 6 5 5 Average Carried 4 | . 4 4 4 Final Capacity 8 | 8 5 5 5 Final Carried 5 | 1 5 5 5 Class Distribution -------------------- 85% | Mutant 14% | Sprinter Dominant Class ---------------- Mutant | -10/Materials Mutant | -9/Materials Mutant | -8/Materials Resources | -11 -10 -9 -8 ----------- Run | Yrd Mat Mat Mat Matter Collected 564 | 218 256 6 84 Remotely . | . . . . Salvage Created 416 | . 200 185 31 Parts 33 | . 12 17 4 Haulers Intercepted 1 | . . . 1 Recyclers Shooed . | . . . . Parts Field Recycled . | . . . . Retrieved Matter . | . . . . Parts Self-Destructed . | . . . . Prevented . | . . . . Parts Restored . | . . . . Kills | -11 -10 -9 -8 ------- Run | Yrd Mat Mat Mat Combat Hostiles Destroyed 13 | . 7 6 . Guns 7 | . 7 . . AOE 6 | . . 6 . Classes Destroyed 7 | . 2 4 1 Worker 1 | . . 1 . Builder 2 | . . 2 . Hauler 1 | . . . 1 Swarmer 3 | . 3 . . Grunt 8 | . 4 4 . Duelist 1 | . . 1 . Sentry 1 | . . 1 . Best Kill Streak 9 | . 3 9 1 Combat Bots Only 6 | . 3 6 . Max Kills in Single Turn 3 | . 1 3 1 Gunslinging . | . . . . Exploded 2 | . . 2 . Melee . | . . . . Uniques/NPCs Destroyed . | . . . . Combat | -11 -10 -9 -8 -------- Run | Yrd Mat Mat Mat Hostile Shots Fired 232 | . 66 38 128 Missed 74 | . 13 25 36 Hits 158 | . 53 13 92 Melee 1 | . . 1 . Projectile 157 | . 53 12 92 Critical Strikes 2 | . . 1 1 Damage Taken 1746 | . 523 201 1022 Core 696 | . 103 43 550 Absorbed by Shields . | . . . . Core Remaining (%) 82 | 100 58 89 . Volleys Fired 45 | . 37 6 2 Largest 2 | . 2 2 2 Hottest 80 | . 40 70 80 Shots Fired 79 | . 64 12 3 Gun 70 | . 64 6 . Cannon 2 | . . . 2 Launcher 7 | . . 6 1 Special . | . . . . Kinetic 60 | . 58 . 2 Thermal 12 | . 6 6 . Explosive 7 | . . 6 1 Electromagnetic . | . . . . Robot Hit Streak 15 | . 12 15 2 Robot Miss Streak 5 | . 5 1 2 Penetration Max . | . . . . Secondary Targets 3 | . 3 . . Max Gunslinging Chain 1 | . 1 . . Shots Hit Robots 41 | . 36 4 1 Core Hits 32 | . 13 16 3 Critical Kills . | . . . . Critical Parts Destroyed . | . . . . Critical Strikes . | . . . . Melee Attacks . | . . . . Impact . | . . . . Slashing . | . . . . Piercing . | . . . . Sneak Attacks . | . . . . Combat Hostiles . | . . . . Follow-up Attacks . | . . . . Damage Inflicted 1228 | . 451 578 199 Guns 485 | . 451 34 . Cannons 49 | . . . 49 Explosions 689 | . . 544 145 Melee . | . . . . Ramming 5 | . . . 5 Kinetic 438 | . 389 . 49 Thermal 96 | . 62 34 . Explosive 689 | . . 544 145 Electromagnetic . | . . . . Impact . | . . . . Slashing . | . . . . Piercing . | . . . . Highest Corruption . | . . . . Average Corruption . | . . . . Corruption Purged . | . . . . Corruption Blocked . | . . . . Overload Shots . | . . . . Overflow Damage 7 | . . . 7 Projectiles . | . . . . Explosions 7 | . . . 7 Melee . | . . . . Knockbacks . | . . . . Impact . | . . . . Kinetic . | . . . . Secondary . | . . . . Self-Inflicted Damage 48 | . . 18 30 Shots 2 | . . 1 1 Rammed 4 | . . . 4 Targets Rammed 4 | . . . 4 Kicked . | . . . . Crushed . | . . . . Highest Temperature 22 | . 18 9 22 Average Temperature 9 | . 13 4 15 Received Heat Transfer 555 | . 216 69 270 Siege Activations . | . . . . Martial Activations . | . . . . Shielding Activations . | . . . . Robots Disrupted . | . . . . Combat Hostiles . | . . . . Robots Corrupted . | . . . . Combat Hostiles . | . . . . Parts Fried . | . . . . Impact Corruptions . | . . . . Robots Melted . | . . . . Combat Hostiles . | . . . . Parts Melted . | . . . . Heat Transferred 225 | . 150 75 . Parts Sabotaged . | . . . . Parts Stolen . | . . . . Parts Stripped . | . . . . Power Chain Reactions . | . . . . Alert | -11 -10 -9 -8 ------- Run | Yrd Mat Mat Mat Maximum Alert Level 1 | . . 1 . Low Security (%) 98 | 100 100 93 100 Level 1 1 | . . 6 . Level 2 . | . . . . Level 3 . | . . . . Level 4 . | . . . . Level 5 . | . . . . High Security . | . . . . Max Security . | . . . . Peak Influence 201 | . 95 201 84 Initial 84 | . . 18 84 Average 43 | . 50 49 45 Influence Increases 495 | . 195 261 39 Destroy 0b10 Robot/C 260 | . 140 120 . Destroy 0b10 Robot/NC 20 | . . 15 5 Destroy Leader 82 | . 40 40 2 Disable Machine 30 | . 15 15 . Destroy Structure 43 | . . 26 17 Lose Combat Pursuer 60 | . . 45 15 Influence Decreases 480 | . 150 105 225 Entered New Map 144 | . . 27 117 Time Decay 218 | . 110 60 48 Lost Part 118 | . 40 18 60 Squads Dispatched 7 | . 3 2 2 Investigation 2 | . 1 . 1 Extermination . | . . . . Reinforcement 5 | . 2 2 1 Assault . | . . . . Garrison . | . . . . Intercept . | . . . . Searches Triggered . | . . . . Construction Impeded 1 | . . . 1 Haulers Reinforced . | . . . . Active Scanning Responses . | . . . . Cargo Convoy Interrupts . | . . . . Stealth | -11 -10 -9 -8 --------- Run | Yrd Mat Mat Mat Distress Signals 2 | . 1 1 . Communications Jammed . | . . . . Distress Signals . | . . . . Times Spotted 40 | . 9 11 20 Peak Tracking Total 20 | . 4 8 20 Tactical Retreats 3 | . . 2 1 Traps | -11 -10 -9 -8 ------- Run | Yrd Mat Mat Mat Traps Triggered 2 | . 1 . 1 Indirectly . | . . . . Trap Hack Attempts . | . . . . Triggered . | . . . . Disarmed . | . . . . Reprogrammed . | . . . . Reused . | . . . . Traps Extracted . | . . . . Installed . | . . . . Triggered . | . . . . Machines | -11 -10 -9 -8 ---------- Run | Yrd Mat Mat Mat Machines Disabled 2 | . 1 1 . Max in Single Turn 1 | . 1 1 . Machines Repaired . | . . . . Machines Dismantled . | . . . . Machines Sabotaged . | . . . . Overloaded Fab Kills . | . . . . Hacking | -11 -10 -9 -8 --------- Run | Yrd Mat Mat Mat Machines Accessed . | . . . . Terminals . | . . . . Fabricators . | . . . . Repair Stations . | . . . . Recycling Units . | . . . . Scanalyzers . | . . . . Garrison Access . | . . . . Total Hacks . | . . . . Successful . | . . . . Failed . | . . . . Catastrophic . | . . . . Database Lockouts . | . . . . Manual . | . . . . Terminals . | . . . . Fabricators . | . . . . Repair Stations . | . . . . Recycling Units . | . . . . Scanalyzers . | . . . . Garrison Access . | . . . . Terminal Hacks . | . . . . Fabricator Hacks . | . . . . Repair Station Hacks . | . . . . Recycling Unit Hacks . | . . . . Scanalyzer . | . . . . Garrison Access Hacks . | . . . . Unauthorized Hacks . | . . . . Terminals . | . . . . Fabricators . | . . . . Repair Stations . | . . . . Recycling Units . | . . . . Scanalyzers . | . . . . Garrison Access . | . . . . Data Cores Recovered . | . . . . Used . | . . . . Hacking Detections . | . . . . Full Trace Events . | . . . . Feedback Events . | . . . . Feedback Blocked . | . . . . Robot Schematics Acquired . | . . . . Robots Built . | . . . . Authchips . | . . . . Time . | . . . . Total Robot Build Rating . | . . . . Part Schematics Acquired . | . . . . Parts Built . | . . . . Authchips . | . . . . Time . | . . . . Total Part Build Rating . | . . . . Part Studies Acquired . | . . . . Parts Repaired . | . . . . Time . | . . . . Parts Recycled . | . . . . Recycled Matter . | . . . . Retrieved Matter . | . . . . Retrieved Components . | . . . . Parts Scanalyzed . | . . . . Part Schematics Acquired . | . . . . Parts Damaged . | . . . . Bothacking | -11 -10 -9 -8 ------------ Run | Yrd Mat Mat Mat Used RIF Installer . | . . . . Robots Hacked . | . . . . Non-combat . | . . . . Combat . | . . . . Robot Hacks Applied . | . . . . Relay Couplers Released . | . . . . Fabnet Peak Effective % . | . . . . Robots Rewired . | . . . . Allies Hacked . | . . . . Hacks Repelled . | . . . . Allies | -11 -10 -9 -8 -------- Run | Yrd Mat Mat Mat Total Allies . | . . . . Largest Group . | . . . . Highest-Rated Group . | . . . . Highest-Rated Ally . | . . . . Total Orders . | . . . . Ally Attacks . | . . . . Total Damage . | . . . . Kills . | . . . . Allies Corrupted . | . . . . Allies Melted . | . . . . Intel | -11 -10 -9 -8 ------- Run | Yrd Mat Mat Mat Active Infowar (turns) . | . . . . Robot Analysis Total . | . . . . Derelict Logs Recovered . | . . . . Drone Launches . | . . . . Drone Recoveries . | . . . . Exploration | -11 -10 -9 -8 ------------- Run | Yrd Mat Mat Mat Turns Passed 580 | 70 271 131 108 Spaces Moved 729 | 62 142 311 214 Core 35 | 2 . . 33 Treads . | . . . . Legs . | . . . . Wheels 180 | 60 114 . 6 Hover . | . . . . Flight 514 | . 28 311 175 Fastest Speed 29 | 50 37 29 32 Average Speed 55 | 98 109 34 38 Slowest Speed 150 | 100 145 114 150 Overloaded Moves . | . . . . Propulsion Burnouts . | . . . . Robots Hopped 10 | . . 9 1 Potential Cave-ins . | . . . . Cave-ins Triggered . | . . . . Exploration Rate (%) 26 | 4 37 33 32 Regions Visited 3 Branch Regions . Pre-discovered Areas . | . . . . Known Exits Taken . | . . . . Unknown Exits Taken 3 | 1 1 1 . Scrap Searched . | . . . . Spaces Dug . | . . . . Terrain Destroyed 39 | . . 25 14 Melee . | . . . . Projectile . | . . . . AOE 39 | . . 25 14 Terrain Rammed . | . . . . Walls Destroyed . | . . . . Machines Disabled . | . . . . Actions | -11 -10 -9 -8 --------- Run | Yrd Mat Mat Mat Total 805 | 68 192 313 232 Wait . | . . . . Move 707 | 61 141 293 212 Hop 9 | . . 8 1 Pick Up 6 | 1 4 1 . Fast Attach 21 | 6 3 3 9 Attach 4 | . 2 1 1 Detach 3 | . 2 . 1 Swap 1 | . 1 . . Drop 5 | . 2 1 2 Fire 45 | . 37 6 2 Melee . | . . . . Ram 4 | . . . 4 Kick . | . . . . Crush . | . . . . Escape Stasis . | . . . . Rewire . | . . . . Trap . | . . . . Miscellaneous . | . . . . Route ------- -11/Scrapyard -10/Materials -9/Materials -8/Materials History --------- Turn | Location | Event 24 | -11/Scrapyard | Discovered new exit (range 13) 71 | -11/Scrapyard | Entered Materials 314 | -10/Materials | Build established: Mutant 338 | -10/Materials | Discovered new exit (range 11) 342 | -10/Materials | Entered another Materials area 342 | -9/Materials | Evolved 2 slots: Propulsion x2 351 | -9/Materials | Lost 3 parts (1n2w) 438 | -9/Materials | Discovered new exit (range 15) 473 | -9/Materials | Entered another Materials area 473 | -8/Materials | Evolved 2 slots: Propulsion x2 555 | -8/Materials | Core integrity fell below 50% 570 | -8/Materials | Core integrity fell below 20% 581 | -8/Materials | Destroyed by G-47 Trooper with Particle Gun Last Messages --------------- 00546_ Slammed into G-47 Trooper. 00546_ Destabilizing: Core damaged (-16). 00547_ G-47 Trooper destroyed. 00547_ U-05 Engineer lays Concrete. 00547_ Acquired Imp. Heat Sink. 00548_ U-05 Engineer builds a Wall. 00548_ R-06 Scavenger collects Prototype Energy Gun. 00549_ The unstable cave ceiling collapses. 00551_ R-06 Scavenger collects Lgt. Treads. 00553_ Slammed into S-10 Pest. 00564_ Acquired Arm. Huge Wheel. 00567_ Imp. Heat Sink destroyed. 00568_ S-10 Pest destroyed. 00569_ Acquired Arm. Huge Wheel. 00571_ Acquired Imp. Deuterium Engine. 00575_ Acquired Prototype Ballistic Cannon. 00575_ Identified Mni. Assault Cannon. 00576_ S-10 Pest destroyed. 00577_ Critical hit (Burn: +37). 00577_ Acquired Mni. Assault Cannon. Map ----- +----------------------------------------------------+ | ??????????# # ##########"Y # | | ??????????# + # #"" ^ # | | ??????????# #"S # # # | | ??????????# #### #""" !# # # | | ??????????##+#???# # "" # + """" # | | ?????????????????# + # # """" + | | ?????????????????# ######## + """" # | | ?????????????????# ###????# # # | | ?????????????????# +????# # # | | ?????????????????# #????# # ######## | | ?????????????????# #????# # #??????? | | ?????????????????# #????# # #??????? | | ?????????????????# #?? # # #??????? | | ?????????????#####/## # [ # # #??????? | | ??????????#[ !!! / / # # #??????? | | ??????????# !!! # # # # #??????? | | ??????????# !! # #??### ##### ######## | | ??????????# # #????# ????# # # | | ??????????+ # #????# ????# # # | | ????????? # # #####?########????# # "" + | | ??????????# /gs s*#?????????????# # T" # | | ??????????# # %ss#?????????????# # % "" # | | ??????????#####+#####ggs*=#?????????????# # # | | ????????????????????# **#?????????????# ####+### | | ????????????????????# ] #?????????????# | | ????????????????????# ]@#?????????????# | | ????????????????????# #####?????????????# | | ????????????????????# ??????????????????# ##+### | | ????????????????????# ??????????????????# # | | ???????????????????? ??????????????????#####""" | | ????????????????????##??????????????????????#""" | | ????????????????????????????????????????????#""" | | ????????????????????????????????????????????# | | ????????????????????????????????????????????###### | | | | | | | | | | | | | | | | | | | | | | | | | | | | | | | | | +----------------------------------------------------+ Best States ------------- Heat Dissipation 45 Energy Generation 16 Energy Capacity 290 Matter Stores 300 Matter Capacity 300 Sight Range 16 Terrain Scan Density 10 Evasion (%) 63 Item Schematics ----------------- None Robot Schematics ------------------ None Fabricated ------------ Nothing Repaired ---------- Nothing Studied --------- None Alien Tech Used ----------------- None Achievements -------------- None Challenges ------------ None Game ------ Seed WarpMakeshiftComputer Manual? 0 Play Time 00:08:46 Cumulative 51.4 hours Start 2025.12.18 @ 04:00:44 End 2025.12.18 @ 04:09:11 Sessions 1 Manual Loads 0 Difficulty Rogue Special Mode None Game No. 195 Rogue 195 Adventurer 0 Explorer 0 Win Type - Total 0 Types 0/0/0/0/0/0/0/0/0/0 Lore% 12 Gallery% 37 Achievement% 25 Wizard Run 0 Options --------- Layout 1 ASCII 0 Keyboard 1 Movement Vi Keybinds 0 Fullscreen 1 Font 16/SmallcapsGlow Map View 55x38 Zoom Use 0% Tactical HUD 1 Map Filters NONE Filters NONE Steam X RUN: e70ad42e-1523-4567-aa23-29ec12ffde50